Date of  Transaction,Department,Supplier,Amount,Purpose,Category
10/03/2020,ICT,Taskworld,289.18,IT Software,IT - Purchase of Software
11/03/2020,ICT,Foreign Exchange Fee,7.95,Taskworld Foreign Exchange Fee,IT - Purchase of Software
11/03/2020,ICT,GMO Globalsign,"1,250.00",SSL Certificate,IT - Purchase of Software
27/03/2020,Homelessness,www.roomsbooked.com,466.67,Covid19 Emergency Accommodation,Bed & Breakfast emergency accommodation
27/03/2020,Homelessness,www.roomsbooked.com,466.67,Covid19 Emergency Accommodation,Bed & Breakfast emergency accommodation
27/03/2020,Homelessness,www.roomsbooked.com,466.67,Covid19 Emergency Accommodation,Bed & Breakfast emergency accommodation
31/03/2020,Homelessness,www.roomsbooked.com,466.67,Covid19 Emergency Accommodation,Bed & Breakfast emergency accommodation
31/03/2020,Homelessness,Willersey Stores,100,Transport to Covid19 Emergency Accommodation,Hire of Taxis
01/04/2020,Homelessness,www.roomsbooked.com,466.67,Covid19 Emergency Accommodation,Bed & Breakfast emergency accommodation
03/04/2020,ICT,Amazon Web Services,0.81,Software,Equipment Purchase
03/04/2020,ICT,Foreign Exchange Fee,0.02,Amazon Web Services Foreign Exchange Fee,Equipment Purchase
04/04/2020,Environment - Service Management and Support Services,Facebook,40,Advertising,Service Charges
06/04/2020,Homelessness,www.roomsbooked.com,466.67,Covid19 Emergency Accommodation,Bed & Breakfast emergency accommodation
07/04/2020,Homelessness,www.roomsbooked.com,466.67,Covid19 Emergency Accommodation,Bed & Breakfast emergency accommodation
07/04/2020,Homelessness,www.roomsbooked.com,466.67,Covid19 Emergency Accommodation,Bed & Breakfast emergency accommodation
07/04/2020,Public Conveniences,Disability Rights,71.25,Additional Radar Keys,Equipment Purchase
08/04/2020,Homelessness,www.roomsbooked.com,466.67,Covid19 Emergency Accommodation,Bed & Breakfast emergency accommodation
08/04/2020,Homelessness,www.roomsbooked.com,466.67,Covid19 Emergency Accommodation,Bed & Breakfast emergency accommodation
09/04/2020,Homelessness,www.roomsbooked.com,466.67,Covid19 Emergency Accommodation,Bed & Breakfast emergency accommodation
09/04/2020,Corporate Buildings,Poundstretcher,18,Nappy sacks for disposal of gloves ,Materials - Cleaning Materials
10/04/2020,ICT,Taskworld Inc.,300.59,IT Software,Equipment Purchase
14/04/2020,ICT,Foreign Exchange Fee,8.27,Taskworld Foreign Exchange Fee,Equipment Purchase
14/04/2020,Corporate Buildings,Toiletspares,10.5,Twyfords 49 toilet flush button,Tools & Equipment - R & M
14/04/2020,Homelessness,www.roomsbooked.com,233.33,Covid19 Emergency Accommodation,Bed & Breakfast emergency accommodation
16/04/2020,Environment - Service Management and Support Services,Facebook,16.22,Advertising,Service Charges
20/04/2020,Homelessness,The Plough,70,Covid19 Emergency Accommodation,Bed & Breakfast emergency accommodation
21/04/2020,ICT,Umbraco,350,Training course,Equipment Purchase
23/04/2020,Homelessness,www.roomsbooked.com,466.67,Covid19 Emergency Accommodation,Bed & Breakfast emergency accommodation
24/04/2020,Homelessness,The Crown,72.5,Covid19 Emergency Accommodation,Bed & Breakfast emergency accommodation
30/04/2020,Tourism Strategy and Promotion,Smugmug online,69.42,Online photos,Marketing
01/05/2020,Tourism Strategy and Promotion,Foreign Exchange Fee,1.91,Smugmug online Foreign exchange fee,Marketing
03/05/2020,ICT,Amazon Web Services,0.81,Software,Equipment Purchase
04/05/2020,ICT,Foreign Exchange Fee,0.02,Amazon Web Services Foreign Exchange Fee,Equipment Purchase
06/05/2020,Homelessness,The Crown Hotel,203,Covid19 Emergency Accommodation,Bed & Breakfast emergency accommodation
07/05/2020,Homelessness,www.roomsbooked.com,560,Covid19 Emergency Accommodation,Bed & Breakfast emergency accommodation
10/05/2020,ICT,Taskworld,303.08,IT Software,Equipment Purchase
11/05/2020,ICT,Foreign Exchange Fee,8.33,Taskworld Foreign Exchange Fee,Equipment Purchase
12/05/2020,Homelessness,The Crown Hotel,273,Covid19 Emergency Accommodation,Bed & Breakfast emergency accommodation
14/05/2020,Homelessness,The Crown Hotel,203,Covid19 Emergency Accommodation,Bed & Breakfast emergency accommodation
19/05/2020,Homelessness,The Crown Hotel,273,Covid19 Emergency Accommodation,Bed & Breakfast emergency accommodation
19/05/2020,ICT,GMO Globalsign,"1,250.00",SSL Certificate,Equipment Purchase
20/05/2020,Homelessness, Verifone Taxi,15,Transport to Covid19 Emergency Accommodation,Hire of Taxis
20/05/2020,Homelessness, Verifone Taxi,45,Transport to Covid19 Emergency Accommodation,Hire of Taxis
20/05/2020,Homelessness,The Crown Hotel,203,Covid19 Emergency Accommodation,Bed & Breakfast emergency accommodation
21/05/2020,Homelessness,GX Hotels,465,Covid19 Emergency Accommodation,Bed & Breakfast emergency accommodation
22/05/2020,Homelessness,The Crown of Cruci Ltd,600,Covid19 Emergency Accommodation,Bed & Breakfast emergency accommodation
22/05/2020,Homelessness,www.roomsbooked.com,560,Covid19 Emergency Accommodation,Bed & Breakfast emergency accommodation
26/05/2020,Homelessness,The Crown Hotel,273,Covid19 Emergency Accommodation,Bed & Breakfast payments
27/05/2020,Homelessness,John Lewis,504.95,To support local vulnerable individual,Equipment Purchase
27/05/2020,Homelessness,The Crown Hotel,406,Covid19 Emergency Accommodation,Bed & Breakfast payments
27/05/2020,Homelessness,Gen Register Office,14,To support local vulnerable individual,Equipment Purchase
29/05/2020,ICT,Vue,104.4,Exam fee ,Equipment Purchase
01/06/2020,Homelessness,The Crown Hotel,273,Accommodation for Homeless Client,Bed & Breakfast payments
01/06/2020,Homelessness,DPD WL,53.99,Delivery charges for equipment ,Equipment Purchase
02/06/2020,ICT,Amazon Web Services,0.85,Software,Equipment Purchase
02/06/2020,Corporate Buildings,Sainsburys,14.6,Nappy sacks for disposal of gloves,Materials - Cleaning Materials
02/06/2020,Homelessness,The Crown Hotel,406,Accommodation for Homeless Client,Bed & Breakfast payments
03/06/2020,Corporate Buildings,Toolstation,80.82,Toilet door locks for Woodgreen,Materials - Cleaning Materials
03/06/2020,ICT,Foreign Exchange Fee,0.02,Amazon Web Services Foreign Exchange Fee,Equipment Purchase
04/06/2020,Homelessness,Mercure Eastgate Hotel,770,Accommodation for Homeless Client,Bed & Breakfast payments
05/06/2020,Homelessness,The Crown Hotel,203,Accommodation for Homeless Client,Bed & Breakfast payments
05/06/2020,Homelessness,The Original Cotswold,45,Accommodation for Homeless Client,Bed & Breakfast payments
08/06/2020,Homelessness,Amazon,398,To support local vulnerable individual,Equipment Purchase
09/06/2020,Homelessness,The Crown Hotel,58,Accommodation for Homeless Client,Bed & Breakfast payments
10/06/2020,ICT,Taskworld,294.33,IT Software,Equipment Purchase
10/06/2020,Homelessness,GX Hotels,260,Accommodation for Homeless Client,Bed & Breakfast payments
11/06/2020,ICT,Foreign Exchange Fee,8.09,Taskworld Foreign Exchange Fee,Equipment Purchase
11/06/2020,Corporate Buildings,B&Q,10,Keypad batteries for Elmfield,Tools & Equipment - R & M
11/06/2020,Support To Elected Bodies,Westminster Social Policy Forum,228,Westminster Social Policy Forum Seminar,Printing - Services
12/06/2020,Homelessness,The Crown Hotel,203,Accommodation for Homeless Client,Bed & Breakfast payments
15/06/2020,High Street re-opening,Fence Supplies UK,"2,845.00",Fixed leg pedestrian barriers,Equipment Purchase
15/06/2020,High Street re-opening,Giggle Print,"4,752.20",Double sided barrier covers,Equipment Purchase
16/06/2020,Support To Elected Bodies,EB Online Training,84,Councillor Online Training course,Printing - Services
16/06/2020,Support To Elected Bodies,EB Online Training,84,Councillor Online Training course,Printing - Services
16/06/2020,Homelessness,Mercure Eastgate Hotel,165,Accommodation for Homeless Client,Bed & Breakfast payments
16/06/2020,Homelessness,Mercure Eastgate Hotel,275,Accommodation for Homeless Client,Bed & Breakfast payments
16/06/2020,Homelessness,The Crown Hotel,58,Accommodation for Homeless Client,Bed & Breakfast payments
18/06/2020,ICT,Vandyke,50.31,Software,Equipment Purchase
18/06/2020,Homelessness,The Crown of Crucis Ltd,300,Accommodation for Homeless Client,Bed & Breakfast payments
19/06/2020,ICT,Foreign Exchange Fee,1.38,Vandyke Foreign Exchange Fee,Equipment Purchase
19/06/2020,High Street re-opening,Screwfix,24.28,Cable ties and Diall double-sided tape,Equipment Purchase
19/06/2020,Corporate Buildings,W F Senate,47.88,Lights for Elmfield toilets,Tools & Equipment - R & M
19/06/2020,Corona Virus,Verran Freight,306.8,Transportation to Overflow warehousing,Services - Professional Fees
23/06/2020,Corporate Buildings,Tex Parkviewpetrol,76.17,Diesel for van,Diesel
23/06/2020,Homelessness,Mercure Eastgate Hotel,660,Accommodation for Homeless Client,Bed & Breakfast payments
23/06/2020,Homelessness,The Crown Hotel,406,Accommodation for Homeless Client,Bed & Breakfast payments
24/06/2020,Homelessness,GX Hotels,260,Accommodation for Homeless Client,Bed & Breakfast payments
